bitfinex/quotes_BTCUSD_20250115
["timestamp","ask_amount","ask_price","bid_price","bid_amount"]
[1736900577152,0.0008536,97186.0,97185.0,0.255977]
[1736900577351,0.0008536,97186.0,97185.0,0.259977]
[1736900578074,0.0008536,97186.0,97185.0,0.013]
[1736900579629,0.0008536,97186.0,97185.0,0.009]
[1736900580156,0.0008536,97186.0,97185.0,0.013]
[1736900581804,0.0008536,97186.0,97185.0,0.004]
[1736900581952,0.0008536,97186.0,97185.0,0.013]
[1736900583390,0.0008536,97186.0,97185.0,0.054184]
[1736900583595,0.0008538,97191.0,97189.0,0.041184]
[1736900583806,0.0010019,97191.0,97189.0,0.041184]
[1736900584024,0.0010019,97191.0,97186.0,0.0003834]
[1736900585127,0.0010019,97191.0,97186.0,0.0073834]
[1736900585350,0.0010019,97191.0,97186.0,0.0003834]
[1736900585868,0.0010019,97191.0,97189.0,0.003]
[1736900586279,0.205784,97189.0,97186.0,0.0083834]
[1736900586479,0.10422692,97188.0,97186.0,0.0003834]
[1736900586686,0.0786,97190.0,97186.0,0.0003834]
[1736900586842,0.0010019,97191.0,97186.0,0.0113834]
[1736900587254,0.0010019,97191.0,97187.0,0.205788]
[1736900588617,0.0010019,97191.0,97186.0,0.0003834]
[1736900588828,0.0010019,97191.0,97187.0,0.205788]
[1736900589773,0.0010019,97191.0,97189.0,0.041184]
[1736900589981,0.0010019,97191.0,97190.0,0.205782]
[1736900590430,0.0010019,97191.0,97190.0,0.246966]
[1736900591717,0.0010019,97191.0,97190.0,0.256966]
[1736900592366,0.0010019,97191.0,97190.0,0.260966]
[1736900592563,0.0010019,97191.0,97190.0,0.269966]
[1736900592970,0.0010019,97191.0,97190.0,0.265966]
[1736900593231,0.0010019,97191.0,97190.0,0.270966]
[1736900594240,0.0010019,97191.0,97190.0,0.36112298]
[1736900595304,0.0010019,97191.0,97190.0,0.270966]
[1736900596121,0.0786,97212.0,97192.0,0.205778]
[1736900596333,0.0786,97212.0,97195.0,0.041184]
[1736900596626,0.01613532,97207.0,97196.0,0.205769]
[1736900597066,0.01613532,97207.0,97198.0,0.041184]
[1736900597322,0.01613532,97207.0,97198.0,0.04221269]
[1736900597474,0.001028,97236.0,97224.0,0.041184]
[1736900597891,0.03073966,97225.0,97224.0,0.041184]
[1736900598734,0.03073966,97225.0,97224.0,0.16841092]
[1736900599142,0.03073966,97225.0,97224.0,0.31841092]
[1736900599347,0.01460747,97225.0,97224.0,0.31841092]
[1736900599549,0.01460747,97225.0,97224.0,0.36491092]
[1736900599724,0.01460747,97225.0,97224.0,0.38191092]
[1736900600114,0.01460747,97225.0,97224.0,0.38091092]
[1736900600319,0.01460747,97225.0,97224.0,1.88991092]
[1736900600756,0.001028,97236.0,97225.0,0.584416]
[1736900600965,0.001028,97236.0,97227.0,0.023]
[1736900601185,0.001028,97236.0,97229.0,0.023]
[1736900601401,0.001028,97236.0,97229.0,1.77825519]
[1736900601572,8.58e-06,97230.0,97229.0,1.77722692]
[1736900601952,8.58e-06,97230.0,97229.0,1.98292592]
[1736900602734,8.58e-06,97230.0,97229.0,2.00192592]
[1736900602944,8.58e-06,97230.0,97229.0,0.50192592]
[1736900603125,8.58e-06,97230.0,97229.0,0.415883]
[1736900603352,8.58e-06,97230.0,97229.0,0.422883]
[1736900603858,0.001028,97236.0,97230.0,0.15999142]
[1736900604082,0.001028,97236.0,97230.0,0.00999142]
[1736900604636,0.001028,97236.0,97230.0,0.05117542]
[1736900604836,0.001028,97236.0,97230.0,0.00999142]
[1736900605240,0.0817,97235.0,97230.0,0.01899142]
[1736900605658,0.0817,97235.0,97230.0,0.02499142]
[1736900605851,0.0817,97235.0,97230.0,0.01599142]
[1736900606053,0.0817,97235.0,97230.0,0.00999142]
[1736900606257,0.0817,97235.0,97230.0,0.01599142]
[1736900606493,0.0817,97235.0,97230.0,0.01299142]
[1736900606897,0.0817,97235.0,97231.0,0.009]
[1736900607956,0.001028,97236.0,97231.0,0.009]
[1736900608454,0.001028,97236.0,97231.0,0.014]
[1736900608899,0.001028,97236.0,97234.0,0.0061]
[1736900610086,0.001028,97236.0,97234.0,0.0081]
[1736900610983,0.001028,97236.0,97234.0,0.0121]
[1736900611401,0.001028,97236.0,97234.0,0.0081]
[1736900611542,0.001028,97236.0,97235.0,0.205687]
[1736900612661,0.001028,97236.0,97235.0,0.246871]
[1736900612834,0.001028,97236.0,97235.0,0.250871]
[1736900613034,0.001028,97236.0,97235.0,1.902871]
[1736900613665,0.001028,97236.0,97235.0,1.91118576]
[1736900614079,0.001028,97236.0,97235.0,1.90718576]
[1736900614468,0.001028,97236.0,97235.0,1.91218576]
[1736900614642,0.001028,97236.0,97235.0,0.40718576]
[1736900614846,0.001028,97236.0,97235.0,0.396871]
[1736900615082,0.001028,97236.0,97235.0,0.405871]
[1736900615419,0.001028,97236.0,97235.0,0.407871]
[1736900615750,0.001028,97236.0,97232.0,0.246875]
[1736900616199,0.001028,97236.0,97235.0,0.014]
[1736900616608,0.001028,97236.0,97235.0,0.009]
[1736900617435,0.001028,97236.0,97227.0,2.4207]
[1736900617436,0.10525492,97236.0,97227.0,2.4207]
[1736900617679,0.195702,97228.0,97227.0,2.4207]
[1736900617896,0.29992892,97228.0,97227.0,2.4207]
[1736900618217,0.30500106,97228.0,97227.0,2.4207]
[1736900619194,0.30496505,97228.0,97227.0,2.4227]
[1736900619618,0.28982892,97228.0,97227.0,2.4237]
[1736900619815,0.37152892,97228.0,97227.0,2.4237]
[1736900620053,0.37152892,97228.0,97227.0,2.42549088]
[1736900620487,0.37152892,97228.0,97227.0,2.43549088]
[1736900623379,0.36152892,97228.0,97227.0,2.43549088]
[1736900623514,0.36665386,97228.0,97227.0,2.43549088]
[1736900625932,0.36665386,97228.0,97227.0,2.43449088]
[1736900626110,0.46664492,97228.0,97227.0,2.43449088]
[1736900626317,0.57175124,97228.0,97227.0,2.43449088]
[1736900627011,0.57175124,97228.0,97227.0,2.43249088]
[1736900627414,0.56664492,97228.0,97227.0,2.43249088]
[1736900627818,0.57164032,97228.0,97227.0,2.43249088]
[1736900628626,0.56164032,97228.0,97227.0,2.43249088]
[1736900629023,0.50282432,97228.0,97227.0,2.43249088]
[1736900629256,0.40282432,97228.0,97227.0,2.44966485]
[1736900629464,0.40282432,97228.0,97227.0,2.43249088]
[1736900632547,0.39782892,97228.0,97227.0,2.43249088]
[1736900632760,0.4028247,97228.0,97227.0,2.43249088]
[1736900633360,0.4036776,97228.0,97227.0,2.43249088]
[1736900635994,0.41980914,97228.0,97227.0,2.43249088]
[1736900637228,0.4036776,97228.0,97227.0,2.43249088]
[1736900640424,0.3573776,97228.0,97227.0,2.43249088]
[1736900643004,0.4161936,97228.0,97227.0,2.43249088]
[1736900643613,0.6661936,97228.0,97227.0,2.43249088]
[1736900645225,0.7357936,97228.0,97227.0,2.43249088]
[1736900645849,0.7357936,97228.0,97227.0,2.22686937]
[1736900646055,0.7357936,97228.0,97227.0,2.14876937]
[1736900646056,0.7459215,97228.0,97227.0,2.14876937]
[1736900646266,0.85642842,97228.0,97227.0,2.14876937]
[1736900646676,0.7459215,97228.0,97227.0,2.14876937]
[1736900646926,0.7522015,97228.0,97227.0,2.14876937]
[1736900647622,0.7522015,97228.0,97227.0,2.14976937]
[1736900647833,0.7683357,97228.0,97227.0,2.14976937]
[1736900648105,0.7683357,97228.0,97227.0,2.15076937]
[1736900648312,0.87256262,97228.0,97227.0,2.15076937]
[1736900648484,0.87256262,97228.0,97227.0,2.14876937]
[1736900648743,0.87256262,97228.0,97227.0,2.14976937]
[1736900648948,0.87256262,97228.0,97227.0,2.14876937]
[1736900650405,0.88056262,97228.0,97227.0,2.14976937]
[1736900650956,0.88056262,97228.0,97227.0,2.10862937]
[1736900651518,0.97283489,97228.0,97227.0,2.10862937]
[1736900651818,0.95670069,97228.0,97227.0,2.10862937]
[1736900652176,0.86442842,97228.0,97227.0,2.10862937]
[1736900652692,0.86442842,97228.0,97227.0,2.08805937]
[1736900652894,0.86442842,97228.0,97227.0,2.06748937]
[1736900653108,0.85943264,97228.0,97227.0,2.04691937]
[1736900653418,0.86487011,97228.0,97227.0,2.00577937]
[1736900653627,0.86487011,97228.0,97227.0,1.98520937]
[1736900654159,0.85943264,97228.0,97227.0,1.98520937]
[1736900654397,0.86487019,97228.0,97227.0,1.98520937]
[1736900654754,0.76064327,97228.0,97227.0,1.98520937]
[1736900656429,0.76064327,97228.0,97227.0,1.92349937]
[1736900656583,0.76064327,97228.0,97227.0,1.88235937]
[1736900656794,0.76064327,97228.0,97227.0,1.86178937]
[1736900657920,0.29424727,97228.0,97227.0,1.86178937]
[1736900658125,0.28411937,97228.0,97227.0,1.86178937]
[1736900658346,0.27868182,97228.0,97227.0,1.86178937]
[1736900658741,0.0088529,97228.0,97227.0,1.86178937]
[1736900659507,0.0128529,97228.0,97227.0,1.86178937]
[1736900659918,0.0088529,97228.0,97227.0,1.86178937]
[1736900660150,0.0008529,97228.0,97227.0,1.86078937]
[1736900661084,0.0008529,97228.0,97227.0,1.86378937]
[1736900661404,0.01698319,97228.0,97227.0,1.86378937]
[1736900662893,0.0008529,97228.0,97227.0,1.86578937]
[1736900665677,0.0008529,97228.0,97227.0,1.98907337]
[1736900668079,0.0008529,97228.0,97227.0,2.09330029]
[1736900669024,0.0008529,97228.0,97227.0,2.09130029]
[1736900669220,0.0008529,97228.0,97227.0,2.09330029]
[1736900669771,0.0008529,97228.0,97227.0,2.09130029]
[1736900670109,0.0008529,97228.0,97227.0,2.09430029]
[1736900670312,0.0008529,97228.0,97227.0,2.10769614]
[1736900670737,0.0008529,97228.0,97227.0,2.10469614]
[1736900671434,0.0008529,97228.0,97227.0,2.09869614]
[1736900671642,0.0008529,97228.0,97227.0,2.10769614]
[1736900671836,0.0008529,97228.0,97227.0,2.10369614]
[1736900672244,0.0008529,97228.0,97227.0,2.11269614]
[1736900672430,0.0008529,97228.0,97227.0,2.10769614]
[1736900672820,0.0008529,97228.0,97227.0,2.11269614]
[1736900673334,0.0008529,97228.0,97227.0,2.09869614]
[1736900673653,0.0008529,97228.0,97227.0,2.10769614]
[1736900674018,0.0008529,97228.0,97227.0,2.09869614]
[1736900674221,0.0008529,97228.0,97227.0,2.10769614]
[1736900674539,0.0008529,97228.0,97227.0,2.10369614]
[1736900674947,0.0008529,97228.0,97227.0,2.11269614]
[1736900675148,0.0008529,97228.0,97227.0,2.10369614]
[1736900675771,0.0008529,97228.0,97227.0,2.15249614]
[1736900676087,0.0008529,97228.0,97227.0,3.64749614]
[1736900676289,0.0008529,97228.0,97227.0,3.65249614]
[1736900676498,0.0008529,97228.0,97227.0,3.66149614]
[1736900676701,0.0008529,97228.0,97227.0,3.81149614]
[1736900676898,0.0008529,97228.0,97227.0,3.80249614]
[1736900677114,0.0008529,97228.0,97227.0,3.81149614]
[1736900685434,0.0008529,97228.0,97227.0,3.81765614]
[1736900689345,0.0008529,97228.0,97227.0,3.81149614]
[1736900690080,0.0008529,97228.0,97227.0,3.81349614]
[1736900692009,0.0008529,97228.0,97227.0,3.81965614]
[1736900695706,9e-07,97228.0,97227.0,3.81965614]
[1736900695932,9e-07,97228.0,97227.0,3.81349614]
[1736900696154,9e-07,97228.0,97227.0,3.81965614]
[1736900696846,9e-07,97228.0,97227.0,3.81065614]
[1736900697096,9e-07,97228.0,97227.0,3.81965614]
[1736900697694,9e-07,97228.0,97227.0,3.81465614]
[1736900697920,9e-07,97228.0,97227.0,3.81965614]
[1736900698511,9e-07,97228.0,97227.0,3.81465614]
[1736900698657,9e-07,97228.0,97227.0,3.82165614]
[1736900699084,9e-07,97228.0,97227.0,3.81265614]
[1736900699300,9e-07,97228.0,97227.0,3.82165614]
[1736900700433,0.0018808,97236.0,97235.0,0.355687]
[1736900700682,0.00193013,97236.0,97235.0,0.45991392]
[1736900701150,0.00193013,97236.0,97235.0,0.402911]
[1736900701855,0.00193013,97236.0,97235.0,0.408911]
[1736900703003,0.00193013,97236.0,97235.0,0.417911]
[1736900705303,0.00193013,97236.0,97235.0,1.917911]
[1736900706342,0.00193013,97236.0,97235.0,1.93897629]
[1736900708824,0.00193013,97236.0,97235.0,2.0759339]
[1736900709538,0.00193013,97236.0,97235.0,0.5759339]
[1736900709765,0.00193013,97236.0,97235.0,0.43897629]
[1736900709963,0.00193013,97236.0,97235.0,1.93897629]
[1736900710291,0.10028264,97256.0,97249.0,0.246841]
[1736900710483,0.10028264,97256.0,97249.0,0.35106792]
[1736900710484,0.01214633,97250.0,97249.0,0.35106792]
[1736900711335,0.01214633,97250.0,97249.0,1.85106792]
[1736900711949,0.01214633,97250.0,97249.0,1.85606792]
[1736900712533,0.01214633,97250.0,97249.0,1.86506792]
[1736900713107,0.01214633,97250.0,97249.0,0.38157105]
[1736900713284,0.01214633,97250.0,97249.0,0.60985953]
[1736900713682,0.01214633,97250.0,97249.0,2.10985953]
[1736900713883,0.01214633,97250.0,97249.0,0.38157105]
[1736900714137,0.01214633,97250.0,97249.0,0.60937105]
[1736900714335,0.10028264,97256.0,97249.0,0.60937105]
[1736900714336,0.00664522,97256.0,97255.0,0.291184]
[1736900714533,0.00010496,97284.0,97283.0,0.396769]
[1736900714767,0.09227227,97290.0,97288.0,0.041184]
[1736900715003,0.09227227,97290.0,97288.0,0.29541092]
[1736900715236,0.0144594,97321.0,97288.0,0.396759]
[1736900715500,0.00134651,97289.0,97288.0,0.041184]
[1736900715725,0.00134651,97289.0,97287.0,0.041184]
[1736900716148,0.00134651,97289.0,97288.0,0.009]
[1736900716524,0.205586,97283.0,97275.0,0.041184]
[1736900716928,0.205586,97283.0,97274.0,0.041184]
[1736900717137,0.205586,97283.0,97270.0,0.13278501]
[1736900717361,0.00134651,97289.0,97268.0,0.041184]
[1736900717570,0.0485,97286.0,97268.0,0.041184]
[1736900717795,0.205605,97274.0,97268.0,0.041184]
[1736900718019,0.205606,97273.0,97268.0,0.041184]
[1736900718375,0.205609,97272.0,97266.0,0.041184]
[1736900718611,0.205609,97272.0,97261.0,0.041184]
[1736900718848,0.205609,97272.0,97266.0,0.041184]
[1736900719099,0.205609,97272.0,97268.0,0.002]
[1736900719569,0.205605,97274.0,97266.0,0.041184]
[1736900719768,0.205605,97274.0,97266.0,0.044184]
[1736900719970,0.205605,97274.0,97266.0,0.041184]
[1736900720554,0.205605,97274.0,97268.0,0.001]
[1736900720940,0.0819,97275.0,97266.0,0.041184]
[1736900721529,0.205604,97274.0,97266.0,0.041184]
[1736900721750,0.01612269,97273.0,97266.0,0.041184]
[1736900722253,0.01612269,97273.0,97266.0,0.042184]
[1736900722955,0.10422692,97285.0,97272.0,0.041184]
[1736900722956,0.205589,97282.0,97272.0,0.041184]
[1736900723203,0.0819,97285.0,97279.0,0.041184]
[1736900723379,0.0485,97286.0,97279.0,0.041184]
[1736900723923,0.205581,97285.0,97279.0,0.041184]
[1736900724076,0.0008533,97284.0,97279.0,0.041184]
[1736900724278,0.205585,97283.0,97279.0,0.041184]
[1736900724706,0.0008533,97284.0,97279.0,0.041184]
[1736900725068,0.0008533,97284.0,97283.0,0.041184]
[1736900726010,0.09227227,97306.0,97283.0,0.041184]
[1736900726011,0.05133148,97309.0,97308.0,0.1]
[1736900726163,0.0008528,97323.0,97320.0,0.141184]
[1736900726164,0.08467708,97321.0,97320.0,0.141184]
[1736900726369,0.205301,97418.0,97347.0,0.041184]
[1736900726571,0.44561558,97354.0,97353.0,0.041184]
[1736900726771,0.33019141,97354.0,97353.0,0.39541092]
[1736900727031,0.33019141,97354.0,97353.0,0.41841092]
[1736900727032,0.30949886,97354.0,97353.0,0.41841092]
[1736900727184,7.109e-05,97354.0,97353.0,0.26841092]
[1736900727391,7.109e-05,97354.0,97353.0,0.14541092]
[1736900727591,7.109e-05,97354.0,97353.0,0.15541092]
[1736900727794,0.01618334,97354.0,97353.0,0.15541092]
[1736900728391,7.109e-05,97354.0,97353.0,0.29726257]
[1736900728599,7.109e-05,97354.0,97353.0,0.30626257]
[1736900728813,9.536e-05,97361.0,97354.0,0.205435]
[1736900729014,0.00014465,97361.0,97353.0,0.16141092]
[1736900729221,0.00014465,97361.0,97354.0,0.01]
[1736900729489,0.00014465,97361.0,97360.0,0.17688265]
[1736900729863,0.00014465,97361.0,97360.0,0.041184]
[1736900730942,0.00014465,97361.0,97360.0,0.045184]
[1736900731375,0.00014465,97361.0,97360.0,0.054184]
[1736900731554,0.00014465,97361.0,97360.0,0.050184]
[1736900731881,0.00014465,97361.0,97360.0,0.054184]
[1736900732121,0.00538326,97361.0,97360.0,0.054184]
[1736900732320,0.00014465,97361.0,97360.0,0.054184]
[1736900732498,0.00538328,97361.0,97360.0,0.054184]
[1736900732705,0.00014465,97361.0,97360.0,0.054184]
[1736900732866,0.00538364,97361.0,97360.0,0.054184]
[1736900733586,0.00412944,97361.0,97360.0,0.054184]
[1736900733922,0.205416,97364.0,97360.0,0.050184]
[1736900734117,0.0050537,97361.0,97360.0,0.054184]
[1736900734330,0.205416,97364.0,97360.0,0.054184]
[1736900734543,0.0050537,97361.0,97360.0,0.041184]
[1736900734745,0.205416,97364.0,97360.0,0.050184]
[1736900734897,0.205416,97364.0,97360.0,0.054184]
[1736900734898,0.0050537,97361.0,97360.0,0.054184]
[1736900735107,0.205416,97364.0,97360.0,0.054184]
[1736900735304,0.205416,97364.0,97360.0,0.063184]
[1736900735511,0.00505377,97363.0,97362.0,0.041184]
[1736900737141,0.00505377,97363.0,97362.0,0.045184]
[1736900737339,0.205387,97377.0,97362.0,0.045184]
[1736900737592,0.0054952,97363.0,97362.0,0.045184]
[1736900737798,0.00012547,97390.0,97381.0,0.041184]
[1736900738235,0.205368,97386.0,97381.0,0.041184]
[1736900738616,0.0003572,97382.0,97381.0,0.041184]
[1736900738844,0.01646236,97382.0,97381.0,0.041184]
[1736900739051,0.01646236,97382.0,97379.0,0.17998936]
[1736900739257,0.01646236,97382.0,97381.0,0.002]
[1736900739467,0.205378,97381.0,97379.0,0.17998936]
[1736900739685,0.205378,97381.0,97379.0,0.13495264]
[1736900740035,0.20542729,97381.0,97379.0,0.13495264]
[1736900740237,0.20542729,97381.0,97380.0,0.08995489]
[1736900740499,0.28732729,97381.0,97380.0,0.08995489]
[1736900741055,0.205383,97379.0,97377.0,0.13495264]
[1736900741850,0.410766,97379.0,97376.0,0.13495264]
[1736900742024,0.205383,97379.0,97377.0,0.13495264]
[1736900742665,0.205383,97379.0,97377.0,0.14295264]
[1736900743046,0.205383,97379.0,97377.0,0.008]
[1736900743640,0.205383,97379.0,97377.0,0.011]
[1736900744133,0.205383,97379.0,97377.0,0.19098936]
[1736900745079,0.205383,97379.0,97378.0,0.17998936]
[1736900746073,0.205003,97379.0,97377.0,0.008]
[1736900746312,0.205003,97379.0,97378.0,0.003]
[1736900747049,0.205408,97367.0,97366.0,0.041184]
[1736900748315,0.205408,97367.0,97366.0,0.17605163]
[1736900748734,0.205408,97367.0,97366.0,0.041184]
[1736900748932,0.205408,97367.0,97366.0,0.049184]
[1736900750053,0.205408,97367.0,97366.0,0.23300751]
[1736900751131,0.205408,97367.0,97366.0,0.053184]
[1736900751646,0.205408,97367.0,97366.0,0.045184]
[1736900752052,0.205408,97367.0,97366.0,0.049184]
[1736900752455,0.205408,97367.0,97366.0,0.053184]
[1736900752876,0.205408,97367.0,97366.0,0.22127265]
[1736900753465,0.205408,97367.0,97366.0,0.22527265]
[1736900753853,0.205408,97367.0,97366.0,0.18408865]
[1736900754511,0.205408,97367.0,97366.0,0.012]
[1736900755092,0.205408,97367.0,97366.0,0.022]
[1736900755717,0.205408,97367.0,97366.0,0.014]
[1736900756098,0.205408,97367.0,97366.0,0.017]
[1736900756298,0.205408,97367.0,97366.0,0.013]
[1736900756524,0.205408,97367.0,97366.0,0.017]
[1736900757129,0.205408,97367.0,97366.0,0.013]
[1736900757468,0.250808,97367.0,97366.0,0.011]
[1736900757755,0.250808,97367.0,97366.0,0.015]
[1736900757957,0.250808,97367.0,97366.0,0.011]
[1736900758346,0.250808,97367.0,97366.0,0.025]
[1736900759849,0.250808,97367.0,97366.0,0.02679025]
[1736900761411,0.34503492,97367.0,97366.0,0.02679025]
[1736900761612,0.52813492,97367.0,97366.0,0.02679025]
[1736900763082,0.54424251,97367.0,97366.0,0.02679025]
[1736900764378,0.54424251,97367.0,97366.0,0.02579025]
[1736900764379,0.63839474,97367.0,97366.0,0.02579025]
[1736900764537,0.78839474,97367.0,97366.0,0.02179025]
[1736900764941,0.78839474,97367.0,97366.0,0.02479025]
[1736900765146,0.78839474,97367.0,97366.0,0.02179025]
[1736900765357,0.75305851,97367.0,97366.0,0.02179025]
[1736900765557,0.74305851,97367.0,97366.0,0.02479025]
[1736900765747,0.74305851,97367.0,97366.0,0.02279025]
[1736900766195,0.74405851,97367.0,97366.0,0.02279025]
[1736900766342,0.74405851,97367.0,97366.0,0.02179025]
[1736900766551,0.76428282,97367.0,97366.0,0.02179025]
[1736900766797,0.74817523,97367.0,97366.0,0.02179025]
[1736900767156,0.74717523,97367.0,97366.0,0.02179025]
[1736900769879,0.73717523,97367.0,97366.0,0.02179025]
[1736900770083,0.75328462,97367.0,97366.0,0.02179025]
[1736900771123,0.75413722,97367.0,97366.0,0.02179025]
[1736900772515,0.42509691,97367.0,97366.0,0.02179025]
[1736900772753,0.23776999,97367.0,97366.0,0.02179025]
[1736900772973,0.0008526,97367.0,97366.0,0.02179025]
[1736900773912,0.0008526,97367.0,97366.0,0.06297425]
[1736900774290,0.0008526,97367.0,97366.0,0.06236704]
[1736900774501,0.0008526,97367.0,97366.0,0.37047704]
[1736900774702,4.929e-05,97381.0,97374.0,0.205393]
[1736900774909,4.929e-05,97381.0,97377.0,0.041184]
[1736900775185,4.929e-05,97381.0,97378.0,0.041184]
[1736900775391,4.929e-05,97381.0,97378.0,0.349264]
[1736900776615,4.929e-05,97381.0,97378.0,0.353264]
[1736900777284,4.929e-05,97381.0,97378.0,0.349264]
[1736900777491,4.929e-05,97381.0,97378.0,0.353264]
[1736900777704,4.929e-05,97381.0,97380.0,0.246564]
[1736900777956,4.929e-05,97381.0,97380.0,0.83976092]
[1736900778355,4.929e-05,97381.0,97380.0,2.36276092]
[1736900779179,4.929e-05,97381.0,97380.0,2.27176092]
[1736900779384,4.929e-05,97381.0,97380.0,2.21790052]
[1736900779551,4.929e-05,97381.0,97380.0,2.25520092]
[1736900779986,4.929e-05,97381.0,97380.0,2.26420092]
[1736900780159,0.0003572,97382.0,97381.0,0.00995071]
[1736900780386,0.0003572,97382.0,97381.0,0.42224763]
[1736900781768,0.0003572,97382.0,97381.0,0.46343163]
[1736900781925,0.0003572,97382.0,97381.0,0.47243163]
[1736900782127,0.0003572,97382.0,97381.0,0.46343163]
[1736900782587,1.005142,97400.0,97383.0,0.205374]
[1736900782810,1.210482,97400.0,97389.0,0.041184]
[1736900783009,1.210482,97400.0,97389.0,0.102668]
[1736900783010,0.205348,97396.0,97389.0,0.102668]
[1736900783627,0.410697,97396.0,97389.0,0.102668]
[1736900783832,0.20548447,97390.0,97389.0,0.102668]
[1736900784064,0.20548447,97390.0,97389.0,0.111668]
[1736900784499,0.20548447,97390.0,97389.0,0.102668]
[1736900784707,0.20548447,97390.0,97389.0,0.107668]
[1736900784851,0.20548447,97390.0,97389.0,0.102668]
[1736900785282,0.19548447,97390.0,97389.0,0.102668]
[1736900786207,0.19548447,97390.0,97389.0,0.104668]
[1736900786944,0.19548447,97390.0,97389.0,0.102668]
[1736900791960,0.27428447,97390.0,97389.0,0.102668]
[1736900792163,0.37851139,97390.0,97389.0,0.102668]
[1736900792378,0.52561139,97390.0,97389.0,0.102668]
[1736900792600,0.32138447,97390.0,97389.0,0.102668]
[1736900793221,0.42138447,97390.0,97389.0,0.102668]
[1736900794798,0.42138447,97390.0,97389.0,0.10445804]
[1736900795039,0.42223687,97390.0,97389.0,0.10445804]
[1736900796744,0.32223687,97390.0,97389.0,0.10445804]
[1736900798434,0.560697,97396.0,97395.0,1.52676162]
[1736900798668,0.76492392,97396.0,97395.0,2.04016162]
[1736900798889,0.66492392,97396.0,97395.0,2.04016162]
[1736900799077,0.410697,97396.0,97395.0,2.04016162]
[1736900799605,0.01650594,97399.0,97396.0,0.041184]
[1736900799860,0.01650594,97399.0,97398.0,0.041184]
[1736900800117,0.01650594,97399.0,97398.0,2.054574]
[1736900801234,0.01650594,97399.0,97398.0,2.063574]
[1736900801568,0.01650594,97399.0,97398.0,2.054574]
[1736900802368,0.01650594,97399.0,97398.0,2.058574]
[1736900803012,0.0004,97399.0,97398.0,2.058574]
[1736900803258,0.0004,97399.0,97398.0,2.060574]
[1736900803850,0.0004,97399.0,97398.0,2.058574]
[1736900804051,0.0004,97399.0,97398.0,2.054574]
[1736900804309,0.0004,97399.0,97398.0,2.061574]
[1736900805130,0.0004,97399.0,97398.0,2.063574]
[1736900805818,0.0004,97399.0,97398.0,2.056574]
[1736900806226,0.0004,97399.0,97398.0,0.52039]
[1736900806608,1.080342,97400.0,97399.0,0.0096]
[1736900806820,1.18456892,97400.0,97399.0,0.52298]
[1736900807435,1.23276892,97400.0,97399.0,0.52298]
[1736900809684,1.24887297,97400.0,97399.0,0.52298]
[1736900811593,1.22887297,97400.0,97399.0,0.52298]
[1736900813203,1.21276892,97400.0,97399.0,0.52298]
[1736900819200,1.21276892,97400.0,97399.0,0.52476983]
[1736900819201,1.37158492,97400.0,97399.0,0.52476983]
[1736900821348,1.52158492,97400.0,97399.0,0.52476983]
[1736900821553,1.54458492,97400.0,97399.0,0.52476983]
[1736900821757,1.54458492,97400.0,97399.0,0.50423583]
[1736900823241,1.54558492,97400.0,97399.0,0.4162578]
[1736900824962,1.54558492,97400.0,97395.0,1.52676162]
[1736900824963,0.388616,97396.0,97395.0,1.52676162]
[1736900825170,0.79311884,97396.0,97395.0,1.34396652]
[1736900825359,0.79311884,97396.0,97395.0,1.64878652]
[1736900825937,0.79311884,97396.0,97395.0,1.62825152]
[1736900826135,0.79311884,97396.0,97395.0,1.49611152]
[1736900826136,0.56384292,97396.0,97395.0,1.49611152]
[1736900826382,0.56884292,97396.0,97395.0,1.49711152]
[1736900827351,0.56384292,97396.0,97395.0,1.30640652]
[1736900827563,1.14739484,97396.0,97395.0,1.12823652]
[1736900827742,1.12264184,97396.0,97395.0,1.09279652]
[1736900827899,1.12264184,97396.0,97395.0,1.07226152]
[1736900828111,1.12264184,97396.0,97395.0,1.05172652]
[1736900828283,1.13974926,97396.0,97395.0,0.98912152]
[1736900828488,1.16019214,97396.0,97395.0,0.98912152]
[1736900828892,1.15419214,97396.0,97395.0,0.98912152]
[1736900829144,1.15419214,97396.0,97395.0,0.91133152]
[1736900829145,1.15919214,97396.0,97395.0,0.91133152]
[1736900829316,1.15919214,97396.0,97395.0,0.78088652]
[1736900829539,1.03139214,97396.0,97395.0,0.61633652]
[1736900829741,1.03639214,97396.0,97395.0,0.61733652]
[1736900829922,1.03139214,97396.0,97395.0,0.53419652]
[1736900830124,0.58182014,97396.0,97395.0,0.51366152]
[1736900830380,0.58182014,97396.0,97359.0,0.00179046]
[1736900830381,0.158816,97368.0,97359.0,0.00179046]
[1736900830525,0.308816,97360.0,97359.0,0.00179046]
[1736900830734,0.64146592,97360.0,97359.0,0.30993046]
[1736900831759,0.61846592,97360.0,97359.0,0.30997975]
[1736900831971,0.30964992,97360.0,97359.0,0.43907975]
[1736900832168,0.40964992,97360.0,97359.0,0.43907975]
[1736900832374,0.31064992,97360.0,97359.0,0.43907975]
[1736900833009,0.31264992,97360.0,97359.0,0.43907975]
[1736900833211,0.31064992,97360.0,97359.0,0.43907975]
[1736900834039,0.32676025,97360.0,97359.0,0.43907975]
[1736900834394,0.32576025,97360.0,97359.0,0.43907975]
[1736900834854,0.32576025,97360.0,97359.0,0.44007975]
[1736900835290,0.32576025,97360.0,97359.0,0.43907975]
[1736900835691,0.32576025,97360.0,97359.0,0.44107975]
[1736900836145,0.63457625,97360.0,97359.0,0.31197975]
[1736900836944,0.47576025,97360.0,97359.0,0.31197975]
[1736900837144,0.55964992,97360.0,97359.0,0.31197975]
[1736900837730,0.55964992,97360.0,97359.0,0.31097975]
[1736900838140,0.55964992,97360.0,97359.0,0.31197975]
[1736900838856,0.55964992,97360.0,97359.0,0.31097975]
[1736900839023,0.45964992,97360.0,97359.0,0.31097975]
[1736900839214,0.55964992,97360.0,97359.0,0.31097975]
[1736900839416,0.55964992,97360.0,97359.0,0.30997975]
[1736900839877,0.56064992,97360.0,97359.0,0.30997975]
[1736900840088,0.55964992,97360.0,97359.0,0.30997975]
[1736900840384,0.56064992,97360.0,97359.0,0.30997975]
[1736900841440,0.57676044,97360.0,97359.0,0.30997975]
[1736900842176,0.57676044,97360.0,97359.0,0.31097975]
[1736900842380,0.32676044,97360.0,97359.0,0.31097975]
[1736900842591,0.205391,97376.0,97359.0,0.31097975]
[1736900842592,0.205401,97371.0,97360.0,0.0771]
[1736900842802,0.1,97372.0,97360.0,0.0771]
[1736900843007,0.1,97372.0,97360.0,0.38523]
[1736900843008,0.10422692,97370.0,97360.0,0.38523]
[1736900843257,0.410834,97363.0,97360.0,0.38523]